Cogmind - Beta 16 @@@ ROGUE MODE // 2025.11.08 @ 13:40:05 Player: StaticNoob Result: Destroyed by P-80 Master with Gamma Rifle Performance ------------- Evolutions (7) 3500 Regions Visited (18) 3600 Robots Destroyed (236) 1180 Value Destroyed (9575) 9575 Prototype IDs (27) 540 Alien Tech Used (0) 0 Bonus (6689) 6689 TOTAL SCORE: 25084 Bonus ------- High Alert Combat Kills 1065 Follower Combat Kills 2945 Awakened Behemoth Slayer 1000 Network Hubs Disabled 200 Met Imprinter 300 Was Imprinted 300 Built Enhanced Grunts 300 A7 Reached Mainframe 300 Met R17 at Cetus 500 Friendly Fire -221 Cogmind --------- Core Integrity 0/1300 Matter 300/300 Energy 476/600 System Corruption 67% Temperature Cool (0) Movement Treading (110) Ox1 Location -3/Armory Parts ------- > --- POWER (2) -------- Micro Antimatter Reactor Micro Antimatter Reactor > --- PROPULSION (6) --- Myomer Leg Treaded Armored-Antigrav Exoskeleton > --- UTILITY (9) ------ Advanced Cooling System Small Battery Small Battery (fused) Compact Battery Advanced Signal Interpreter Improved Target Analyzer Advanced Target Analyzer > --- WEAPON (4) ------- Gamma Rifle Long-range Proton Cannon Enhanced Nova Cannon > --- INVENTORY (5) ---- Micro Nuclear Core Light Antimatter Reactor Matter Compressor (250) Gamma Rifle Advanced Remote Datajack Peak State ------------ > --- POWER ------------ Particle-Fusion Reactor > --- PROPULSION ------- Treaded Armored-Antigrav Exoskeleton > --- UTILITY ---------- Armored Scrap Engine Advanced Cryofiber Web Advanced Heat Sink Advanced Heat Sink Large Storage Unit Advanced Targeting Computer Improved Target Analyzer Advanced Transmission Jammer > --- WEAPON ----------- Hpw. Charged Gamma Construct/C Ballistic Linear Construct/C Thermic Plasma Construct/G CR-A16's Behemoth Slayer > --- INVENTORY -------- Advanced Heat Sink Improved Coolant Injector Matter Compressor Advanced Terrain Scanner Seismic Detector Makeshift ECM Suite Improved Point Defense System Long-range Tractor Beam Mobile Refinery Mk. CCLXVII Heavy Proton Missile Launcher Precision Rocket Launcher Improved Remote Datajack [Rating: 140] Favorites ----------- Power Constructs Engine Light Ion Engine Power Core Light Nuclear Core Reactor Constructs Propulsion Constructs Treads Constructs Leg Flexi-carbon Leg Wheel Compact Wheel Hover Unit Improved Antigrav System Flight Unit Flight Unit Utility Large Storage Unit Device Armored Scrap Engine Storage Large Storage Unit Processor Advanced Targeting Computer Hackware Hacking Suite Protection Centrium Medium Armor Plating Weapon Constructs Energy Gun Constructs Energy Cannon Constructs Ballistic Gun Heavy Assault Rifle Ballistic Cannon Constructs Launcher Gamma Bomb Array Piercing Weapon CR-A16's Pointy Stick Build | -11 -10 -10 -8 -8 -8 -6 -6 -6 -6 -5 -5 -5 -5 -5 -5 -4 -3 -3 ------- Run | Yrd Mat Sub Mat Sto Rec Fac Low Low Zio Pro Fac Ext Cet Arc Hub Fac Res Arm Slots Evolved 14 | . . . 4 . . 4 . . . . 2 . . . . 2 2 . Power 1 | . . . . . . 1 . . . . . . . . . . . . Propulsion 4 | . . . 2 . . . . . . . 1 . . . . 1 . . Utility 7 | . . . 1 . . 3 . . . . 1 . . . . . 2 . Weapon 2 | . . . 1 . . . . . . . . . . . . 1 . . Parts Attached 113 | 6 7 4 18 10 2 6 2 . 3 1 2 5 1 . . 8 10 28 Power 9 | 1 1 1 1 1 . . . . . . . . . . . . 1 3 Engine 4 | 1 1 1 1 . . . . . . . . . . . . . . . Core 2 | . . . . 1 . . . . . . . . . . . . 1 . Reactor 3 | . . . . . . . . . . . . . . . . . . 3 Propulsion 25 | 2 . 1 9 5 1 . . . . . . . . . . . . 7 Treads 12 | 2 . . 4 5 1 . . . . . . . . . . . . . Leg 4 | . . . 1 . . . . . . . . . . . . . . 3 Wheel 4 | . . 1 3 . . . . . . . . . . . . . . . Hover 3 | . . . . . . . . . . . . . . . . . . 3 Flight 2 | . . . 1 . . . . . . . . . . . . . . 1 Utility 52 | 1 3 1 3 1 1 6 1 . 3 1 . 4 1 . . 7 9 10 Device 30 | . 2 1 2 . 1 4 1 . 2 1 . 3 . . . 4 7 2 Storage 9 | 1 1 . . 1 . . . . . . . . . . . 1 . 5 Processor 10 | . . . 1 . . 1 . . 1 . . 1 . . . 1 2 3 Hackware 1 | . . . . . . 1 . . . . . . . . . . . . Protection 2 | . . . . . . . . . . . . . 1 . . 1 . . Artifact . | . . . . . . . . . . . . . . . . . . . Weapon 27 | 2 3 1 5 3 . . 1 . . . 2 1 . . . 1 . 8 Energy Gun 2 | . . . . . . . . . . . . . . . . . . 2 Energy Cannon 4 | . . . 1 1 . . . . . . . . . . . . . 2 Ballistic Gun 11 | 2 3 1 4 1 . . . . . . . . . . . . . . Ballistic Cannon . | . . . . . . . . . . . . . . . . . . . Launcher 8 | . . . . 1 . . 1 . . . 2 . . . . . . 4 Special Weapon . | . . . . . . . . . . . . . . . . . . . Impact Weapon . | . . . . . . . . . . . . . . . . . . . Slashing Weapon . | . . . . . . . . . . . . . . . . . . . Piercing Weapon 2 | . . . . . . . . . . . . 1 . . . 1 . . Special Melee Weapon . | . . . . . . . . . . . . . . . . . . . Unidentified Prototypes 7 | . . . . 2 1 . . . 1 . 2 . 1 . . . . . Corrupted Parts 5 | . . . . . . . . . . . . . . . . . . 5 System Corruption 32 | . . . . . . . . . . . . . . . . . . 32 Parts Lost 67 | . 3 5 6 3 1 1 1 . . 2 . 1 . . 1 . 27 16 Power 9 | . 1 1 . 1 . 1 . . . . . . . . . . 4 1 Propulsion 18 | . . 2 4 1 1 . . . . . . . . . . . 4 6 Utility 21 | . . 1 . 1 . . . . . . . 1 . . . . 14 4 Weapon 19 | . 2 1 2 . . . 1 . . 2 . . . . 1 . 5 5 Highest Loss Streak 9 | . 1 5 3 2 1 1 1 . . 1 . 1 . . 1 . 8 9 To Critical Strikes . | . . . . . . . . . . . . . . . . . . . Average Backups 12 | . 9 10 12 14 10 10 13 13 14 12 12 14 15 15 15 14 10 4 Power . | . . . . 1 1 . . . . . . . . . . . . . Propulsion . | . . . 1 1 1 . . . . . . . . . . . . . Utility 8 | . 3 6 6 5 5 9 11 11 12 11 10 12 13 13 12 11 8 1 Weapon 2 | . 5 4 4 5 3 1 1 1 . 1 1 2 2 2 2 1 1 1 Tool/Special . | . . . . . . . . . . . . . . . . . . . Unused Backups 41 | . . . 1 4 11 3 . . 6 2 . . . . 1 2 6 5 Power 6 | . . . . . 2 1 . . 1 . . . . . . . . 2 Propulsion 4 | . . . . 1 3 . . . . . . . . . . . . . Utility 19 | . . . . 1 2 1 . . 4 2 . . . . 1 2 4 2 Weapon 10 | . . . 1 2 4 1 . . 1 . . . . . . . 1 . Tool/Special 2 | . . . . . . . . . . . . . . . . . 1 1 Average Slot Usage (%) 71 | . 99 89 94 99 75 59 62 66 66 63 63 64 64 64 64 60 56 57 Engine 2 | . 14 11 9 3 . 5 5 . . 1 2 . . . . . . . Core 3 | . . . . 5 9 . 1 6 6 4 . 5 5 . . 4 . . Reactor 1 | . . . . . . . . . . . 1 . . 4 5 . 2 7 Treads 9 | . 27 21 21 26 13 2 . 6 6 6 1 2 5 5 2 . 1 4 Wheel 2 | . . 1 9 9 7 . . . . . . . . . . . . . Device 14 | . 13 11 11 8 9 12 19 20 20 20 22 19 12 11 11 13 20 1 Storage 7 | . 14 14 9 9 9 6 6 6 6 6 5 5 5 5 5 4 3 4 Processor 6 | . . . 4 9 4 5 6 6 6 6 5 8 11 11 11 10 8 13 Energy Gun 2 | . . . . . . . . . 3 8 1 2 5 10 7 13 5 1 Energy Cannon 3 | . . . 2 8 6 3 1 6 6 6 9 1 . . . . . 4 Ballistic Gun 8 | . 28 28 24 18 14 6 4 . . . . 2 5 . 2 . . . Launcher 1 | . . . . . . . 2 6 6 . 4 2 . . . . . 9 Piercing Weapon 1 | . . . . . . . . . . . . 2 5 5 5 4 3 . Peak Build Rating 140 | 6 10 10 22 30 46 62 75 76 79 83 91 104 98 110 110 111 140 119 Average Rating 64 | 5 9 8 19 26 35 58 64 75 75 77 85 98 97 107 105 102 104 85 On Entrance 58 | . 6 9 10 22 30 46 62 75 76 74 76 91 95 98 110 98 102 34 Avg Prop Armor Cover (%) 20 | . . . 20 21 21 . . . . . . . . . . . 38 9 Naked Turns . | . . . . . . . . . . . . . . . . . . . Heaviest Build 89 | 12 30 32 42 42 39 44 50 50 57 64 80 67 60 62 64 78 89 74 Greatest Support 191 | 40 40 40 40 60 69 88 109 68 68 110 100 100 99 190 190 110 191 84 Greatest Overweight (x) 10 | . 1 8 4 2 10 . . . . 1 1 . . . . . 1 3 Average Overweight (x) . | . . . 1 1 1 . . . . . . . . . . . . . Largest Inventory Capacity 15 | 8 15 15 15 15 15 15 15 15 15 15 15 15 15 15 15 15 15 5 Average Capacity 14 | 7 14 15 15 15 15 15 15 15 15 15 15 15 15 15 15 14 14 5 Most Carried 15 | 1 12 12 15 15 15 15 15 15 15 14 14 15 15 15 15 15 15 5 Average Carried 12 | . 9 10 13 14 10 11 12 13 14 12 12 14 14 15 14 14 10 4 Final Capacity 15 | 8 15 15 15 15 15 15 15 15 15 15 15 15 15 15 15 15 5 5 Final Carried 15 | 1 11 11 15 13 13 15 12 15 13 12 14 15 15 15 15 15 5 5 Scrap Engine Consumption 322 | . . . . . 42 29 1 2 8 28 31 51 16 4 14 33 63 . Constructs Created 12 | . . . . . 3 1 . . . 2 . . . . . 2 4 . Constructs Modified 120 | . . . . . 7 16 4 . 3 7 12 19 . 5 9 12 26 . Class Distribution -------------------- 35% | Construct 22% | Commander-Construct 18% | Mutant 12% | Scavenger-Gunner 6% | Commander-Gunner Dominant Class ---------------- Mutant | -10/Materials Mutant | -10/Subcaves Scavenger-Gunner | -8/Materials Scavenger-Gunner | -8/Storage Commander-Gunner | -8/Recycling Construct | -6/Factory Construct | -6/Lower Caves Construct | -6/Lower Caves Construct | -6/Zion Construct | -5/Proximity Caves Construct | -5/Factory Commander-Construct | -5/Extension Commander-Construct | -5/Cetus Commander-Construct | -5/Archives Commander-Construct | -5/Hub_04(d) Construct | -4/Factory Mutant | -3/Research Scavenger-Gunner | -3/Armory Resources | -11 -10 -10 -8 -8 -8 -6 -6 -6 -6 -5 -5 -5 -5 -5 -5 -4 -3 -3 ----------- Run | Yrd Mat Sub Mat Sto Rec Fac Low Low Zio Pro Fac Ext Cet Arc Hub Fac Res Arm Matter Collected 5259 | 290 401 207 733 470 211 369 89 67 326 61 98 71 54 . . 319 1060 433 Remotely . | . . . . . . . . . . . . . . . . . . . Salvage Created 10177 | 123 573 85 1204 1233 189 811 81 238 . 728 293 879 202 82 354 802 1572 728 Parts 529 | 15 43 4 85 63 5 40 4 16 . 24 25 50 9 . 12 37 62 35 Haulers Intercepted 6 | . 1 . 1 3 . . . . . . . . . . . 1 . . Recyclers Shooed 8 | . . . 1 3 . . . . . . . . . . . 1 3 . Parts Field Recycled . | . . . . . . . . . . . . . . . . . . . Retrieved Matter . | . . . . . . . . . . . . . . . . . . . Parts Self-Destructed 25 | . . 3 . . . . 3 8 . 11 . . . . . . . . Prevented 10 | . . . . . . . . . . 10 . . . . . . . . Parts Restored . | . . . . . . . . . . . . . . . . . . . Kills | -11 -10 -10 -8 -8 -8 -6 -6 -6 -6 -5 -5 -5 -5 -5 -5 -4 -3 -3 ------- Run | Yrd Mat Sub Mat Sto Rec Fac Low Low Zio Pro Fac Ext Cet Arc Hub Fac Res Arm Combat Hostiles Destroyed 184 | . 14 2 28 21 1 14 1 10 . 10 10 15 2 1 6 16 24 9 Melee 1 | . . . . . . 1 . . . . . . . . . . . . Guns 85 | . 14 2 21 10 . 5 1 . . 4 . 4 2 1 6 3 11 1 Cannons 47 | . . . 6 9 1 8 . 1 . 6 3 7 . . . . 4 2 AOE 42 | . . . . 2 . . . 9 . . 7 4 . . . 12 7 1 Classes Destroyed 19 | 1 5 1 6 . . 2 1 . . 2 . . . . . . . 1 Worker 13 | . . . 2 4 . 1 . . . . . . . . . 1 5 . Builder 6 | . . . 2 . . 1 . . . . 1 . . . . . 2 . Tunneler 6 | 5 . . . . . . . . . . . . . . . 1 . . Hauler 6 | . 1 . 1 3 . . . . . . . . . . . 1 . . Recycler 7 | . . . 1 2 2 . . . . . . . . . . 1 1 . Operator 2 | . 1 . . . . . . . . . . . . . . . . 1 Watcher 9 | . 3 . 1 . . 2 . . . . . 1 . . . 1 1 . Swarmer 59 | . 5 . 11 7 . 3 . 7 . . 8 4 . . . 9 5 . Cutter 1 | . . . . . . . . . . . . . . . . . . 1 Grunt 60 | . 9 . 12 7 . 6 . 3 . 4 . 2 . . 3 3 8 3 Brawler 1 | . . . . . . 1 . . . . . . . . . . . . Duelist 5 | . . . . . . . . . . 2 . . . . . 2 1 . Sentry 24 | . . . 2 7 . 3 . . . 1 1 6 . 1 . . 3 . Specialist 6 | . . . 2 . . . . . . . . . . . 1 . . 3 Hunter 8 | . . . 1 . . . . . . 1 . 3 . . 1 . 2 . Programmer 13 | . . . . . . 1 . . . 1 2 . . . 1 1 5 2 Behemoth 2 | . . . . . . . 1 . . . . . . . . 1 . . Cetus Guard 2 | . . . . . . . . . . . . . 2 . . . . . Subdweller 3 | . . 2 . . 1 . . . . . . . . . . . . . Thug 1 | . . . . . . . . . . 1 . . . . . . . . Guerrilla 1 | . . . . . . . . . . . . . 1 . . . . . Mutant 1 | . . . . . . . . . . 1 . . . . . . . . Best Kill Streak 11 | 5 5 1 8 9 1 6 1 5 . 4 6 4 1 1 2 11 6 3 Combat Bots Only 9 | . 5 1 7 4 1 5 1 5 . 4 5 4 1 1 2 9 5 3 Max Kills in Single Turn 4 | 1 2 1 2 2 1 1 1 3 . 1 4 4 1 1 1 3 3 1 Gunslinging 1 | . 1 . 1 1 . . . . . . . . . . . . . . Exploded 4 | . . . . 2 . . . 3 . . 3 4 . . . 3 3 1 Melee 1 | . . . . . . 1 . . . . . . . . . . . . Uniques/NPCs Destroyed . | . . . . . . . . . . . . . . . . . . . Combat | -11 -10 -10 -8 -8 -8 -6 -6 -6 -6 -5 -5 -5 -5 -5 -5 -4 -3 -3 -------- Run | Yrd Mat Sub Mat Sto Rec Fac Low Low Zio Pro Fac Ext Cet Arc Hub Fac Res Arm Hostile Shots Fired 1401 | . 75 20 99 75 8 89 27 18 . 51 33 104 15 5 76 50 539 117 Missed 443 | . 17 4 27 17 . 29 7 10 . 13 15 43 5 2 26 19 176 33 Hits 958 | . 58 16 72 58 8 60 20 8 . 38 18 61 10 3 50 31 363 84 Melee 12 | . . . . . . 1 . . . 4 . . . . . 2 4 1 Projectile 946 | . 58 16 72 58 8 59 20 8 . 34 18 61 10 3 50 29 359 83 AOE 2 | . . . 1 . . . . . . . . . . . . . . 1 Critical Strikes 46 | . 1 . 6 1 1 3 3 1 . 1 . 1 1 . 1 4 18 4 Part Disruptions 1 | . . . . . . . . . . . . . . . . . . 1 Damage Taken 19453 | . 603 393 1150 716 159 845 461 151 . 809 565 1184 248 111 1287 838 7884 2049 Core 2364 | . 67 130 215 37 . 119 54 16 . 125 . 69 19 28 41 141 1173 130 Absorbed by Shields 416 | . . . . . . . . . . . . 240 75 . . . 101 . Regen/Repaired (Parts) 5321 | . . . . . 10 550 204 27 96 381 407 841 33 347 416 1037 972 . Core Remaining (%) 68 | 100 . 21 . . 54 . . . . 63 . . . . 84 87 . . Volleys Fired 670 | 7 46 13 84 59 11 45 8 8 2 31 34 40 17 7 41 28 132 57 Largest 3 | 2 2 2 3 3 3 2 2 2 1 3 2 2 2 2 2 3 3 2 Hottest 262 | 40 46 46 120 108 169 169 219 97 72 195 85 85 81 81 98 262 222 156 Shots Fired 1301 | 14 91 26 249 164 20 82 16 10 2 64 47 73 31 12 67 67 213 53 Gun 904 | 14 91 26 224 110 9 41 8 . . 33 . 22 31 12 65 60 154 4 Cannon 343 | . . . 25 52 11 41 8 4 2 31 43 49 . . 2 . 47 28 Launcher 54 | . . . . 2 . . . 6 . . 4 2 . . . 7 12 21 Special . | . . . . . . . . . . . . . . . . . . . Kinetic 680 | 14 91 26 224 110 9 49 8 2 2 . . 18 15 1 20 15 76 . Thermal 522 | . . . 25 52 11 33 8 2 . 46 43 53 16 11 47 45 109 21 Explosive 29 | . . . . . . . . 6 . . 2 2 . . . 7 12 . Electromagnetic 70 | . . . . 2 . . . . . 18 2 . . . . . 16 32 Robot Hit Streak 28 | 3 9 26 10 25 10 16 8 2 . 15 6 6 10 4 11 10 28 8 Robot Miss Streak 8 | 2 4 1 8 3 2 3 2 2 . 2 4 3 2 2 3 2 4 4 Penetration Max 2 | . . . . . . . . . . . . . 1 . 2 . . . Secondary Targets 9 | . 2 . 3 2 . . . . . . . . . . . . 2 . Max Gunslinging Chain 1 | . 1 . 1 1 . . . . . . . . . . . . 1 . Shots Hit Robots 820 | 7 62 24 152 108 10 48 9 3 . 52 16 43 24 6 27 46 155 28 Core Hits 414 | 5 26 4 63 43 3 25 2 15 . 41 13 28 10 2 9 35 64 26 Critical Kills 8 | . . . 1 . . . . . . . . 1 1 . 3 1 . 1 Critical Parts Destroyed 7 | . . . 1 . . . . . . . . 2 1 . 3 . . . Critical Strikes 26 | . . . 2 . . . 1 . . . . 3 4 1 6 2 6 1 Burn 5 | . . . . . . . . . . . . . . . . . 5 . Meltdown 2 | . . . 1 . . . . . . . . . . . . . . 1 Destroy 17 | . . . 1 . . . 1 . . . . 3 4 1 6 1 . . Corrupt 1 | . . . . . . . . . . . . . . . . . 1 . Impale 1 | . . . . . . . . . . . . . . . . 1 . . Melee Attacks 17 | . . . . . . . . . . . . 5 . . . 3 9 . Impact . | . . . . . . . . . . . . . . . . . . . Slashing . | . . . . . . . . . . . . . . . . . . . Piercing 17 | . . . . . . . . . . . . 5 . . . 3 9 . Sneak Attacks . | . . . . . . . . . . . . . . . . . . . Combat Hostiles . | . . . . . . . . . . . . . . . . . . . Follow-up Attacks . | . . . . . . . . . . . . . . . . . . . Damage Inflicted 26452 | 89 905 300 2402 2173 236 1785 627 709 . 1805 1583 1675 851 199 911 2471 6121 1610 Guns 12906 | 86 904 300 1874 1172 115 517 457 . . 759 . 469 851 199 911 981 3249 62 Cannons 6942 | . . . 528 848 121 1250 170 90 . 752 549 811 . . . . 1192 631 Explosions 6342 | . . . . 148 . . . 619 . 294 1034 283 . . . 1453 1594 917 Melee 149 | . . . . . . . . . . . . 112 . . . 37 . . Ramming 113 | 3 1 . . 5 . 18 . . . . . . . . . . 86 . Kinetic 8994 | 86 904 300 1874 1172 115 1155 170 29 . . . 354 429 . 428 237 1741 . Thermal 10641 | . . . 528 848 121 612 457 61 . 1529 1034 926 422 199 483 744 2205 472 Explosive 4365 | . . . . . . . . 619 . . 416 283 . . . 1453 1594 . Electromagnetic 2190 | . . . . 148 . . . . . 276 133 . . . . . 495 1138 Impact . | . . . . . . . . . . . . . . . . . . . Slashing . | . . . . . . . . . . . . . . . . . . . Piercing 149 | . . . . . . . . . . . . 112 . . . 37 . . Highest Corruption 67 | . . . . . . 2 2 2 2 . . . . . 6 1 25 67 Average Corruption 15 | . . . . . . 1 2 2 2 . . . . . 1 1 16 47 Corruption Purged 1 | . . . . . . . . . . . . . . . . 1 . . Corruption Blocked . | . . . . . . . . . . . . . . . . . . . Effects 113 | . . . . . . 7 3 2 1 . . . . . 2 . 60 38 Message Errors 28 | . . . . . . 1 1 1 1 . . . . . 1 . 14 9 Matter Fused 18 | . . . . . . 3 1 1 . . . . . . 1 . 10 2 Heat Flow Errors 9 | . . . . . . 1 1 . . . . . . . . . 5 2 Energy Discharges 13 | . . . . . . . . . . . . . . . . . 9 4 Parts Rejected 4 | . . . . . . . . . . . . . . . . . 3 1 Parts Fused 2 | . . . . . . . . . . . . . . . . . 1 1 Data Loss (minor) 13 | . . . . . . 1 . . . . . . . . . . 6 6 Data Loss (major) 5 | . . . . . . . . . . . . . . . . . 3 2 Alerts 2 | . . . . . . 1 . . . . . . . . . . 1 . Misdirections 8 | . . . . . . . . . . . . . . . . . 6 2 Weapon Failures 11 | . . . . . . . . . . . . . . . . . 2 9 Overload Shots 10 | . . . . . . . 6 . . . 3 . . . . 1 . . Effects 1 | . . . . . . . 1 . . . . . . . . . . . Heat Surge 1 | . . . . . . . 1 . . . . . . . . . . . Overflow Damage 683 | . . . 15 6 . 101 . 32 . 9 154 27 . . . 70 232 37 Projectiles 256 | . . . 15 . . 101 . . . 9 58 . . . . . 59 14 Explosions 427 | . . . . 6 . . . 32 . . 96 27 . . . 70 173 23 Melee . | . . . . . . . . . . . . . . . . . . . Knockbacks 26 | . . . . . . 11 . 1 . . . . . . . . 14 . Impact . | . . . . . . . . . . . . . . . . . . . Kinetic 24 | . . . . . . 9 . 1 . . . . . . . . 14 . Secondary 2 | . . . . . . 2 . . . . . . . . . . . . Self-Inflicted Damage 770 | . . . . . . . . . . . 296 . . . . 158 . 316 Shots 39 | . . . . . . . . . . . 4 . . . . 3 . 32 Rammed 12 | 1 1 . . 1 . 2 . . . . . . . . . . 7 . Targets Rammed 15 | 1 1 . . 1 . 3 . . . . . . . . . . 9 . Kicked . | . . . . . . . . . . . . . . . . . . . Crushed 3 | . . . . . . 1 . . . . . . . . . . 2 . Highest Temperature 570 | . 25 . 282 290 171 468 522 . . 263 . 4 2 . 28 180 570 521 Average Temperature 106 | . 9 . 48 93 65 168 175 . . 117 . 4 2 . 11 54 194 125 Received Heat Transfer 3672 | . 258 45 531 279 9 309 370 30 . 195 . 202 6 . 39 111 1258 30 Effects 19 | . . . . . . 7 2 . . . . . . . . . 6 4 Shutdowns 9 | . . . . . . 3 1 . . . . . . . . . 2 3 Energy Bleed 3 | . . . . . . 1 . . . . . . . . . . 1 1 Interference 1 | . . . . . . 1 . . . . . . . . . . . . Matter Decay 2 | . . . . . . 1 . . . . . . . . . . 1 . Short Circuit 1 | . . . . . . . 1 . . . . . . . . . . . Damage (minor) 2 | . . . . . . 1 . . . . . . . . . . 1 . Damage (major) 1 | . . . . . . . . . . . . . . . . . 1 . Siege Activations . | . . . . . . . . . . . . . . . . . . . Martial Activations . | . . . . . . . . . . . . . . . . . . . Shielding Activations . | . . . . . . . . . . . . . . . . . . . Robots Disrupted . | . . . . . . . . . . . . . . . . . . . Combat Hostiles . | . . . . . . . . . . . . . . . . . . . Robots Corrupted 7 | . . . . . . . . . . . . . . . . . 3 4 Combat Hostiles 5 | . . . . . . . . . . . . . . . . . 1 4 Parts Fried 11 | . . . . . . . . . . 1 . . 1 . . . 2 7 Impact Corruptions 2 | . . . . . . 1 . . . . . . . . . . 1 . Robots Melted 3 | . . . 1 . . . . . . . . . . . . . 1 1 Combat Hostiles 3 | . . . 1 . . . . . . . . . . . . . 1 1 Parts Melted 34 | . . . 1 . . 1 1 . . 4 . 4 . . 2 2 18 1 Heat Transferred 13751 | . . . 703 1369 116 783 500 100 . 1776 650 1140 444 222 555 1036 3987 370 Parts Sabotaged . | . . . . . . . . . . . . . . . . . . . Parts Stolen . | . . . . . . . . . . . . . . . . . . . Parts Stripped . | . . . . . . . . . . . . . . . . . . . Power Chain Reactions 2 | . . . . 1 . . . . . 1 . . . . . . . . Alert | -11 -10 -10 -8 -8 -8 -6 -6 -6 -6 -5 -5 -5 -5 -5 -5 -4 -3 -3 ------- Run | Yrd Mat Sub Mat Sto Rec Fac Low Low Zio Pro Fac Ext Cet Arc Hub Fac Res Arm Maximum Alert Level 4 | . . . 1 2 . 2 . . . . 2 2 2 2 4 3 3 2 Low Security (%) 43 | 100 100 . 34 10 100 72 . . . . 14 41 . 33 11 . . . Level 1 28 | . . . 65 56 . 26 . . . . 76 39 9 62 13 . 32 . Level 2 21 | . . . . 32 . 1 . . . . 8 19 90 4 15 58 50 100 Level 3 5 | . . . . . . . . . . . . . . . 26 41 16 . Level 4 1 | . . . . . . . . . . . . . . . 32 . . . Level 5 . | . . . . . . . . . . . . . . . . . . . High Security . | . . . . . . . . . . . . . . . . . . . Max Security . | . . . . . . . . . . . . . . . . . . . Peak Influence 1260 | 10 113 . 376 495 170 400 . . . . 426 681 673 418 1260 930 960 654 Initial 597 | . . . . 100 121 400 . . . . 73 205 365 237 30 597 458 503 Average 285 | 2 45 . 232 357 21 155 . . . . 263 261 565 249 802 719 487 541 Influence Increases 10571 | 25 449 . 739 725 369 850 30 230 . 392 739 1092 458 221 1826 570 1385 471 Destroy 0b10 Robot/C 4700 | . 280 . 560 420 60 280 20 200 . 260 240 500 160 80 580 320 520 220 Destroy 0b10 Robot/NC 305 | 25 25 . 35 45 15 20 . . . . 5 10 10 5 35 25 45 5 Destroy Leader 788 | . 68 . 84 106 . 64 10 30 . 30 30 44 . . 136 54 92 40 Allied During Kill 1357 | . . . . . 29 . . . . 87 9 376 170 85 564 . 6 31 Successful Hack 129 | . 45 . 7 27 26 5 . . . . . 7 . . . 12 . . Select Force Hacks 210 | . . . . . 210 . . . . . . . . . . . . . Disable Machine 660 | . 15 . 30 45 . . . . . . 180 45 90 45 60 15 60 75 Anti-Garrison Action 150 | . . . . . . . . . . . . . . . 150 . . . Destroy Structure 852 | . 1 . 8 7 29 21 . . . . 170 110 28 6 166 114 152 40 Advance Influence 400 | . . . . . . 400 . . . . . . . . . . . . Partial Spotted 75 | . . . . . . 15 . . . . . . . . 15 30 15 . Lose Combat Pursuer 945 | . 15 . 15 75 . 45 . . . 15 105 . . . 120 . 495 60 Influence Decreases 10043 | 25 381 68 500 653 680 738 132 60 180 275 436 859 518 726 694 917 1299 902 Entered New Map 3041 | . . 33 . 139 190 . 42 2 180 . 44 215 288 356 58 623 415 456 Time Decay 5168 | 25 351 35 440 334 376 478 80 58 . 195 362 534 190 350 246 294 574 246 Search Patrol Dispatched 100 | . . . . . . 100 . . . . . . . . . . . . Lost Part 620 | . 30 . 60 30 10 10 10 . . 20 . 10 . . 10 . 270 160 Lost Ally 807 | . . . . . 97 . . . . 60 30 100 40 20 380 . 40 40 Purge Threat 307 | . . . . 150 7 150 . . . . . . . . . . . . Squads Dispatched 47 | . 2 . 3 1 . 3 . . . 1 1 2 . . 11 2 14 7 Investigation 5 | . 1 . . . . . . . . . . . . . 1 . 3 . Extermination 11 | . . . . . . 2 . . . . 1 . . . 1 1 4 2 Reinforcement 22 | . 1 . 3 1 . 1 . . . . . 1 . . 5 . 5 5 Assault 8 | . . . . . . . . . . 1 . 1 . . 3 1 2 . Garrison 1 | . . . . . . . . . . . . . . . 1 . . . Intercept . | . . . . . . . . . . . . . . . . . . . Searches Triggered 1 | . . . . . . 1 . . . . . . . . . . . . Construction Impeded 6 | . . . . . . 1 . . . . . 1 . . 3 . 1 . Haulers Reinforced 1 | . . . . . . . . . . . . . . . 1 . . . Active Scanning Responses . | . . . . . . . . . . . . . . . . . . . Cargo Convoy Interrupts . | . . . . . . . . . . . . . . . . . . . Stealth | -11 -10 -10 -8 -8 -8 -6 -6 -6 -6 -5 -5 -5 -5 -5 -5 -4 -3 -3 --------- Run | Yrd Mat Sub Mat Sto Rec Fac Low Low Zio Pro Fac Ext Cet Arc Hub Fac Res Arm Distress Signals 23 | . 1 . 3 . 2 2 . . . . 1 1 2 . 9 . 2 . Communications Jammed 12 | . . . . . . . . . . . . . . . . 5 7 . Distress Signals 7 | . . . . . . . . . . . . . . . . 5 2 . Times Spotted 373 | . 20 2 39 24 7 18 1 13 . 22 20 26 10 4 49 20 78 20 Peak Tracking Total 12 | . 4 2 4 5 3 4 1 7 . 7 6 5 5 1 9 7 12 4 Tactical Retreats 31 | . 1 . 1 3 . 3 . . . 1 3 . . . 5 . 12 2 Traps | -11 -10 -10 -8 -8 -8 -6 -6 -6 -6 -5 -5 -5 -5 -5 -5 -4 -3 -3 ------- Run | Yrd Mat Sub Mat Sto Rec Fac Low Low Zio Pro Fac Ext Cet Arc Hub Fac Res Arm Traps Triggered 20 | . 2 1 . . . 4 . . . . . 2 . . 1 3 6 1 Indirectly . | . . . . . . . . . . . . . . . . . . . Trap Hack Attempts . | . . . . . . . . . . . . . . . . . . . Triggered . | . . . . . . . . . . . . . . . . . . . Disarmed . | . . . . . . . . . . . . . . . . . . . Reprogrammed . | . . . . . . . . . . . . . . . . . . . Reused . | . . . . . . . . . . . . . . . . . . . Traps Extracted . | . . . . . . . . . . . . . . . . . . . Installed . | . . . . . . . . . . . . . . . . . . . Triggered . | . . . . . . . . . . . . . . . . . . . Machines | -11 -10 -10 -8 -8 -8 -6 -6 -6 -6 -5 -5 -5 -5 -5 -5 -4 -3 -3 ---------- Run | Yrd Mat Sub Mat Sto Rec Fac Low Low Zio Pro Fac Ext Cet Arc Hub Fac Res Arm Machines Disabled 46 | . 1 . 2 3 . . . . . 1 12 3 6 3 5 1 4 5 Max in Single Turn 12 | . 1 . 1 1 . . . . . . 12 1 1 . . 1 1 1 Garrison Access 5 | . . . . 1 . . . . . . 1 . . . 1 1 1 . Network Hub 1 | . . . . . . . . . . . . . . . 1 . . . Machines Repaired . | . . . . . . . . . . . . . . . . . . . Machines Dismantled . | . . . . . . . . . . . . . . . . . . . Machines Sabotaged . | . . . . . . . . . . . . . . . . . . . Overloaded Fab Kills . | . . . . . . . . . . . . . . . . . . . Hacking | -11 -10 -10 -8 -8 -8 -6 -6 -6 -6 -5 -5 -5 -5 -5 -5 -4 -3 -3 --------- Run | Yrd Mat Sub Mat Sto Rec Fac Low Low Zio Pro Fac Ext Cet Arc Hub Fac Res Arm Machines Accessed 64 | . 7 . 6 5 14 11 . . . . 4 4 1 . . 6 5 1 Terminals 30 | . 6 . 5 4 6 5 . . . . . 3 1 . . . . . Fabricators 7 | . . . . . . 1 . . . . 2 . . . . 3 . 1 Repair Stations 1 | . . . . . . . . . . . . . . . . 1 . . Recycling Units 17 | . 1 . . . 7 3 . . . . 1 1 . . . 1 3 . Scanalyzers 2 | . . . 1 . . 1 . . . . . . . . . . . . Garrison Access 6 | . . . . 1 . 1 . . . . 1 . . . . 1 2 . Total Hacks 184 | . 30 . 17 16 41 28 . . . . 7 9 1 . . 22 12 1 Successful 85 | . 18 . 10 9 28 10 . . . . 1 3 . . . 5 1 . Failed 98 | . 12 . 6 7 13 18 . . . . 6 6 1 . . 17 11 1 Catastrophic 25 | . 1 . 2 3 2 5 . . . . 2 1 . . . 5 3 1 Database Lockouts 1 | . . . 1 . . . . . . . . . . . . . . . Manual 139 | . 21 . 11 7 25 14 . . . . 15 8 1 . 12 14 9 2 Terminals 103 | . 29 . 13 15 21 17 . . . . . 7 1 . . . . . Fabricators 22 | . . . . . . 2 . . . . 5 . . . . 14 . 1 Repair Stations 2 | . . . . . . . . . . . . . . . . 2 . . Recycling Units 37 | . 1 . . . 18 6 . . . . 1 2 . . . 2 7 . Scanalyzers 6 | . . . 4 . . 2 . . . . . . . . . . . . Garrison Access 12 | . . . . 1 . 1 . . . . 1 . . . . 4 5 . Terminal Hacks 35 | . 11 . 1 8 7 7 . . . . . 1 . . . . . . Record 1 | . . . . 1 . . . . . . . . . . . . . . Part Schematic 1 | . . . . 1 . . . . . . . . . . . . . . Robot Analysis 6 | . 4 . . . 1 1 . . . . . . . . . . . . Prototype ID Bank 9 | . 3 . . 4 2 . . . . . . . . . . . . . Open Door 1 | . . . . . . . . . . . . 1 . . . . . . Branch Access Points 2 | . 1 . 1 . . . . . . . . . . . . . . . Terminal Index 1 | . . . . . 1 . . . . . . . . . . . . . Unreport Threat 3 | . . . . 1 1 1 . . . . . . . . . . . . Locate Traps 5 | . 3 . . 1 . 1 . . . . . . . . . . . . Zone Layout 4 | . . . . . . 4 . . . . . . . . . . . . Release Object 2 | . . . . . 2 . . . . . . . . . . . . . Fabricator Hacks 1 | . . . . . . . . . . . . . . . . 1 . . Build 1 | . . . . . . . . . . . . . . . . 1 . . Repair Station Hacks 2 | . . . . . . . . . . . . . . . . 2 . . Scan Component 1 | . . . . . . . . . . . . . . . . 1 . . Repair 1 | . . . . . . . . . . . . . . . . 1 . . Recycling Unit Hacks 11 | . 1 . . . 6 2 . . . . . 2 . . . . . . Report Inventory 3 | . 1 . . . . 1 . . . . . 1 . . . . . . Retrieve Components 8 | . . . . . 6 1 . . . . . 1 . . . . . . Scanalyzer 4 | . . . 3 . . 1 . . . . . . . . . . . . Retrieve Study 4 | . . . 3 . . 1 . . . . . . . . . . . . Garrison Access Hacks 4 | . . . . 1 . . . . . . 1 . . . . 1 1 . Seal Access 4 | . . . . 1 . . . . . . 1 . . . . 1 1 . Unauthorized Hacks 28 | . 6 . 6 . 15 . . . . . . . . . . 1 . . Terminals 20 | . 6 . 6 . 8 . . . . . . . . . . . . . Botnet 4 | . 1 . 1 . 2 . . . . . . . . . . . . . Skim 16 | . 5 . 5 . 6 . . . . . . . . . . . . . Fabricators 1 | . . . . . . . . . . . . . . . . 1 . . Prioritize 1 | . . . . . . . . . . . . . . . . 1 . . Repair Stations . | . . . . . . . . . . . . . . . . . . . Recycling Units 7 | . . . . . 7 . . . . . . . . . . . . . Tunnel 7 | . . . . . 7 . . . . . . . . . . . . . Scanalyzers . | . . . . . . . . . . . . . . . . . . . Garrison Access . | . . . . . . . . . . . . . . . . . . . Data Cores Recovered 1 | . 1 . . . . . . . . . . . . . . . . . Used . | . . . . . . . . . . . . . . . . . . . Hacking Detections 51 | . 6 . 6 5 6 11 . . . . 3 3 1 . . 4 5 1 Full Trace Events 1 | . . . . . 1 . . . . . . . . . . . . . Feedback Events . | . . . . . . . . . . . . . . . . . . . Feedback Blocked . | . . . . . . . . . . . . . . . . . . . Robot Schematics Acquired 3 | . . . . . . . . . 3 . . . . . . . . . Robots Built . | . . . . . . . . . . . . . . . . . . . Authchips . | . . . . . . . . . . . . . . . . . . . Time . | . . . . . . . . . . . . . . . . . . . Total Robot Build Rating . | . . . . . . . . . . . . . . . . . . . Part Schematics Acquired 32 | . . . . 1 . . . . 16 . 15 . . . . . . . Parts Built 2 | . . . . . . . . . . . . . . . . 2 . . Authchips . | . . . . . . . . . . . . . . . . . . . Time 139 | . . . . . . . . . . . . . . . . 139 . . Total Part Build Rating 18 | . . . . . . . . . . . . . . . . 18 . . Part Studies Acquired 4 | . . . 3 . . 1 . . . . . . . . . . . . Parts Repaired 1 | . . . . . . . . . . . . . . . . 1 . . Time 26 | . . . . . . . . . . . . . . . . 26 . . Parts Recycled . | . . . . . . . . . . . . . . . . . . . Recycled Matter . | . . . . . . . . . . . . . . . . . . . Retrieved Matter . | . . . . . . . . . . . . . . . . . . . Retrieved Components 42 | . . . . . 30 2 . . . . . 10 . . . . . . Parts Scanalyzed . | . . . . . . . . . . . . . . . . . . . Part Schematics Acquired . | . . . . . . . . . . . . . . . . . . . Parts Damaged . | . . . . . . . . . . . . . . . . . . . Bothacking | -11 -10 -10 -8 -8 -8 -6 -6 -6 -6 -5 -5 -5 -5 -5 -5 -4 -3 -3 ------------ Run | Yrd Mat Sub Mat Sto Rec Fac Low Low Zio Pro Fac Ext Cet Arc Hub Fac Res Arm Used RIF Installer . | . . . . . . . . . . . . . . . . . . . Robots Hacked . | . . . . . . . . . . . . . . . . . . . Non-combat . | . . . . . . . . . . . . . . . . . . . Combat . | . . . . . . . . . . . . . . . . . . . Robot Hacks Applied . | . . . . . . . . . . . . . . . . . . . Relay Couplers Released 2 | . . . . . . . . . . . . . . . 2 . . . Machine Destruction 2 | . . . . . . . . . . . . . . . 2 . . . Fabnet Peak Effective % . | . . . . . . . . . . . . . . . . . . . Robots Rewired 33 | . . . . . 7 . . . . 2 . 23 . . 1 . . . Allies Hacked . | . . . . . . . . . . . . . . . . . . . Hacks Repelled . | . . . . . . . . . . . . . . . . . . . Allies | -11 -10 -10 -8 -8 -8 -6 -6 -6 -6 -5 -5 -5 -5 -5 -5 -4 -3 -3 -------- Run | Yrd Mat Sub Mat Sto Rec Fac Low Low Zio Pro Fac Ext Cet Arc Hub Fac Res Arm Total Allies 71 | . . . . 10 7 . . . 6 2 1 28 5 . 7 . 2 3 Largest Group 23 | . . . . 10 12 . . . 6 6 2 23 20 20 17 . 2 3 Highest-Rated Group 1152 | . . . . 173 191 . . . 210 210 98 931 1152 1152 878 . 206 243 Highest-Rated Ally 159 | . . . . 29 34 . . . 39 49 49 159 159 138 96 . 103 81 Zionite Dispatches 6 | . . . . . . . . . . . 1 1 . . 2 . 1 1 Heavy 3 | . . . . . . . . . . . . 1 . . 1 . 1 . Fire 1 | . . . . . . . . . . . . . . . 1 . . . Hacker 1 | . . . . . . . . . . . . . . . . . . 1 Explosive Resupply 1 | . . . . . . . . . . . 1 . . . . . . . Total Orders 4 | . . . . . 3 . . . . . 1 . . . . . . . STAY 2 | . . . . . 2 . . . . . . . . . . . . . DROP 2 | . . . . . 1 . . . . . 1 . . . . . . . Ally Attacks 547 | . . . . . 76 . . . . 53 8 76 75 33 202 . 6 18 Total Damage 15646 | . . . . . 1106 . . . . 1530 127 2957 1892 931 6237 . 440 426 Kills 83 | . . . . . 9 . . . . 9 2 11 8 5 34 . 2 3 Allies Corrupted 3 | . . . . . . . . . . . 1 . . . 2 . . . Allies Melted 1 | . . . . . . . . . . . . . . . 1 . . . Intel | -11 -10 -10 -8 -8 -8 -6 -6 -6 -6 -5 -5 -5 -5 -5 -5 -4 -3 -3 ------- Run | Yrd Mat Sub Mat Sto Rec Fac Low Low Zio Pro Fac Ext Cet Arc Hub Fac Res Arm Active Infowar (turns) 8514 | . 1160 381 1287 582 . 322 133 218 552 415 822 722 . . . 643 1277 . Optics 129 | . . . . . . . . . . . . . . . . 129 . . IFF 967 | . . . . . . 322 133 218 294 . . . . . . . . . Terrain 923 | . . . . . . . . . . . . . . . . . 923 . Structural 641 | . 641 . . . . . . . . . . . . . . . . . Seismic 5565 | . 519 381 1287 582 . . . . 258 415 822 722 . . . 109 470 . Jamming 812 | . . . . . . . . . . . . . . . . 405 407 . Robot Analysis Total 6 | . 4 . . . 1 1 . . . . . . . . . . . . Derelict Logs Recovered 3 | . . . . . . . . 2 . 1 . . . . . . . . Drone Launches . | . . . . . . . . . . . . . . . . . . . Drone Recoveries . | . . . . . . . . . . . . . . . . . . . Zionite Intel Received 7 | . . . . . . . . . . . 2 1 . . 2 . 2 . Component Schematics 1 | . . . . . . . . . . . 1 . . . . . . . Unaware Analyses 1 | . . . . . . . . . . . . . . . . . 1 . Trap Installations 1 | . . . . . . . . . . . 1 . . . . . . . Active Terminals 1 | . . . . . . . . . . . . . . . 1 . . . Depthwide Sectors/0 1 | . . . . . . . . . . . . . . . 1 . . . Depthwide Sectors/-1 2 | . . . . . . . . . . . . 1 . . . . 1 . Exploration | -11 -10 -10 -8 -8 -8 -6 -6 -6 -6 -5 -5 -5 -5 -5 -5 -4 -3 -3 ------------- Run | Yrd Mat Sub Mat Sto Rec Fac Low Low Zio Pro Fac Ext Cet Arc Hub Fac Res Arm Turns Passed 15768 | 110 1172 465 1287 742 2211 1259 170 218 560 602 822 1502 390 780 537 657 1746 538 Spaces Moved 10687 | 49 600 253 494 327 1408 1169 255 349 785 465 492 863 168 50 403 653 1500 404 Core 54 | 5 . 7 . . 16 . . . . . . . . . . . 26 . Treads 4871 | 44 600 215 39 38 26 463 43 349 785 465 159 281 168 50 157 . 640 349 Legs 1185 | . . . . . . 160 . . . . 63 153 . . . 260 494 55 Wheels 2115 | . . 31 455 289 1234 106 . . . . . . . . . . . . Hover 1371 | . . . . . . 440 212 . . . . 379 . . . . 340 . Flight 1091 | . . . . . 132 . . . . . 270 50 . . 246 393 . . Fastest Speed 45 | 50 160 110 95 120 105 51 51 51 51 67 131 83 153 153 73 45 45 62 Average Speed 103 | 148 160 163 127 128 141 85 51 51 57 92 147 117 153 153 100 57 78 87 Slowest Speed 550 | 160 240 450 330 225 550 150 51 51 67 160 205 153 153 153 153 73 131 330 Overloaded Moves . | . . . . . . . . . . . . . . . . . . . Propulsion Burnouts . | . . . . . . . . . . . . . . . . . . . Robots Hopped 10 | . . . . . 1 . . . . . 3 1 . . 5 . . . Potential Cave-ins 2 | . . . . . . . . . . . . . . . 2 . . . Cave-ins Triggered . | . . . . . . . . . . . . . . . . . . . Exploration Rate (%) 48 | 5 89 19 41 53 99 24 40 58 88 52 15 87 78 66 37 18 46 12 Regions Visited 18 Branch Regions 12 Pre-discovered Areas 27 | . 1 . 1 . 8 . . . 1 . . 5 . . 9 . 2 . Known Exits Taken 10 | . 1 1 1 1 . 1 1 . . 1 1 1 . . 1 . . . Unknown Exits Taken 8 | 1 . . . . 1 . . 1 1 . . . 1 1 . 1 1 . Scrap Searched 8 | . . . . . . . 1 2 5 . . . . . . . . . Spaces Dug 60 | . . . . . 1 6 . 12 . . 14 . . . 20 . 4 3 Terrain Destroyed 512 | . . . 7 4 4 18 4 63 . 28 91 56 7 2 40 69 111 8 Melee 3 | . . . . . . . . . . . . . . . . . 3 . Projectile 173 | . . . 7 2 4 18 4 . . 10 20 25 7 2 40 7 19 8 AOE 336 | . . . . 2 . . . 63 . 18 71 31 . . . 62 89 . Terrain Rammed . | . . . . . . . . . . . . . . . . . . . Walls Destroyed . | . . . . . . . . . . . . . . . . . . . Machines Disabled . | . . . . . . . . . . . . . . . . . . . Actions | -11 -10 -10 -8 -8 -8 -6 -6 -6 -6 -5 -5 -5 -5 -5 -5 -4 -3 -3 --------- Run | Yrd Mat Sub Mat Sto Rec Fac Low Low Zio Pro Fac Ext Cet Arc Hub Fac Res Arm Total 14243 | 69 716 277 983 541 1621 1353 279 378 895 579 540 1271 272 742 468 872 1873 514 Wait 2199 | 6 47 6 367 116 81 100 10 19 92 34 11 168 85 686 25 141 191 14 Move 10651 | 49 599 252 493 326 1405 1168 254 348 784 464 485 860 167 49 393 652 1499 404 Hop 9 | . . . . . 1 . . . . . 3 1 . . 4 . . . Pick Up 84 | 1 10 2 9 9 12 6 . 3 5 1 2 1 . . 1 14 3 5 Fast Attach 71 | 6 5 2 9 4 1 3 . . 1 . 2 . 1 . . 4 7 26 Attach 33 | . 3 2 7 1 1 3 3 . . . 1 1 . . . 1 8 2 Detach 9 | . 1 . 1 . . 2 . . . . 1 . 1 . . 1 2 . Swap 50 | . 3 . 6 8 . 1 2 . 3 2 . 8 . . . 7 9 1 Drop 84 | . 1 . 7 16 20 6 2 . 8 2 1 1 1 . 1 9 4 5 Fire 670 | 7 46 13 84 59 11 45 8 8 2 31 34 40 17 7 41 28 132 57 Melee 17 | . . . . . . . . . . . . 5 . . . 3 9 . Ram . | . . . . . . . . . . . . . . . . . . . Kick . | . . . . . . . . . . . . . . . . . . . Crush 14 | . 1 . . 1 . 3 . . . . . . . . . . 9 . Escape Stasis 31 | . . . . . . 16 . . . . . 2 . . 1 12 . . Rewire 321 | . . . . 1 89 . . . . 45 . 184 . . 2 . . . Trap . | . . . . . . . . . . . . . . . . . . . Miscellaneous . | . . . . . . . . . . . . . . . . . . . Route ------- -11/Scrapyard -10/Materials (discovered 5 exits: *Mat x3 / *Min / *Sub) -10/Subcaves -8/Materials (discovered 5 exits: Fac x3 / *Sto x2) -8/Storage -8/Recycling -6/Factory (discovered 6 exits: Fac x4 / *Low x2) -6/Lower Caves -6/Lower Caves (discovered 2 exits: *Fac / *Zio) -6/Zion -5/Proximity Caves -5/Factory (discovered 3 exits: Fac x2 / *Ext) -5/Extension (discovered 3 exits: *Fac x2 / *Cet) -5/Cetus (discovered 2 exits: *Fac / [*Arc]) -5/Archives -5/Hub_04(d) -4/Factory -3/Research -3/Armory History --------- Turn | Location | Event 4 | -11/Scrapyard | Discovered new exit (range 14) 111 | -11/Scrapyard | Entered Materials 303 | -10/Materials | Build established: Mutant 421 | -10/Materials | Discovered new exit (range 13) 793 | -10/Materials | Identified exit to Mines 839 | -10/Materials | Identified exit to Materials 875 | -10/Materials | Identified exit to Subcaves 902 | -10/Materials | Learned Storage trap positions 919 | -10/Materials | Learned location of 1 exit from Storage 927 | -10/Materials | Learned 2 Mines zone layouts 928 | -10/Materials | Learned Storage trap positions 929 | -10/Materials | Learned location of Recycling (-8) 930 | -10/Materials | Learned Storage security intel 964 | -10/Materials | Learned Storage trap positions 1283 | -10/Materials | Entered Subcaves 1284 | -10/Subcaves | Approached by a straggling Scientist 1284 | -10/Subcaves | Identified exit to Materials 1641 | -10/Subcaves | Core integrity fell below 50% 1688 | -10/Subcaves | Lost 5 parts (1p2n1u1w) 1748 | -10/Subcaves | Entered Materials 1748 | -8/Materials | Evolved 4 slots: Propulsion x2, Utility x1, Weapon x1 1925 | -8/Materials | Lost 3 parts (1n2w) 1936 | -8/Materials | Destroyed 7 combat bots 2041 | -8/Materials | Identified exit to Storage 2054 | -8/Materials | Central database locked down 2256 | -8/Materials | Build established: Scavenger-Gunner 2797 | -8/Materials | Learned location of 1 exit from Lower Caves 2848 | -8/Materials | Learned location of Zion (-6) 2891 | -8/Materials | Identified exit to Factory 2985 | -8/Materials | Learned location of 1 exit from Extension 3032 | -8/Materials | Learned 2 Lower Caves zone layouts 3035 | -8/Materials | Entered Storage 3036 | -8/Storage | Identified exit to Recycling 3037 | -8/Storage | Loaded intel: 7 trap records 3447 | -8/Storage | Used back door to open Recycling access 3711 | -8/Storage | Assisted by bots powering up and referring to "LRC-V3" 3777 | -8/Storage | Entered Recycling 3777 | -8/Recycling | Accompanied by 10 allies 3926 | -8/Recycling | Lost 3 allies 4004 | -8/Recycling | Build established: Commander-Gunner 4050 | -8/Recycling | Discovered new exit (range 16) 4694 | -8/Recycling | Learned Storage trap positions 4723 | -8/Recycling | Learned location of 1 exit from Extension 4744 | -8/Recycling | Learned Storage terminal intel 4757 | -8/Recycling | Learned location of 2 exits from Factory 4771 | -8/Recycling | Learned location of 2 exits from Factory 4803 | -8/Recycling | Entered Scraplab 4819 | -8/Recycling | Learned location of 1 exit from Storage 4826 | -8/Recycling | Found Prototype Device 4826 | -8/Recycling | Identified Scrap Engine 5268 | -8/Recycling | Build established: Commander-Construct 5988 | -8/Recycling | Entered Factory 5988 | -6/Factory | Evolved 4 slots: Power x1, Utility x3 5989 | -6/Factory | Identified exit to Factory 5989 | -6/Factory | Identified exit to Lower Caves 6105 | -6/Factory | Found Hvy. Reflective Plating 6288 | -6/Factory | Build established: Construct 6338 | -6/Factory | Search patrols dispatched 7247 | -6/Factory | Entered Lower Caves 7248 | -6/Lower Caves | Identified exit to Lower Caves 7263 | -6/Lower Caves | Spotted B-75 Beast 7329 | -6/Lower Caves | Destroyed B-75 Beast 7417 | -6/Lower Caves | Entered another Lower Caves area 7470 | -6/Lower Caves | Discovered exit to Factory (range 13) 7481 | -6/Lower Caves | Learned location of 1 exit from Factory 7482 | -6/Lower Caves | Learned Factory interactive machine intel 7622 | -6/Lower Caves | Discovered new exit (range 12) 7635 | -6/Lower Caves | Entered Zion 7644 | -6/Zion | Received a visual enhancement algorithm 7684 | -6/Zion | Discovered new exit (range 16) 7690 | -6/Zion | Found Prototype Device 7705 | -6/Zion | System corruption cleaned by Quarantine Array 7761 | -6/Zion | Gained Derelict followers 7862 | -6/Zion | Met Imprinter 7870 | -6/Zion | Imprinted 7872 | -6/Zion | Declared Zion's savior 7947 | -6/Zion | Identified Mobile Refinery Mk. CCLXVII 7996 | -6/Zion | Acquired unknown access codes intercepted by a Zionite 8022 | -6/Zion | Found CR-A16's Pointy Stick 8195 | -6/Zion | Entered Proximity Caves 8195 | -5/Proximity Caves | Accompanied by 6 allies 8282 | -5/Proximity Caves | Attacked by a faux Warlord 8361 | -5/Proximity Caves | Attracted the attention of an 0b10 checkpoint 8602 | -5/Proximity Caves | Attracted the attention of an 0b10 outpost 8659 | -5/Proximity Caves | Lost 6 allies 8797 | -5/Proximity Caves | Entered Factory 8797 | -5/Factory | Accompanied by 2 allies 8797 | -5/Factory | Evolved 2 slots: Propulsion x1, Utility x1 8798 | -5/Factory | Identified exit to Factory 8798 | -5/Factory | Identified exit to Extension 8799 | -5/Factory | Loaded intel: 56 interactive machine locations 9316 | -5/Factory | Retrieved Zion intel report: Trap Installations 9500 | -5/Factory | Retrieved Zion intel report: Component Schematics 9501 | -5/Factory | Zion Explosive Resupply teleported in 9619 | -5/Factory | Entered Extension 9620 | -5/Extension | Identified exit to Cetus 9911 | -5/Extension | Zion Heavy squad teleported in 9966 | -5/Extension | Rescued a captive Derelict 10310 | -5/Extension | Spotted B-75 Beast 10318 | -5/Extension | Spotted B-75 Beast 10322 | -5/Extension | Allies destroyed B-75 Beast 10343 | -5/Extension | Allies destroyed B-75 Beast 10363 | -5/Extension | Build established: Commander-Construct 10532 | -5/Extension | Rescued A7 10678 | -5/Extension | Rescued a captive Derelict 10683 | -5/Extension | Retrieved Zion intel report: Depthwide Sectors/-4 10932 | -5/Extension | Terminal network hard line cut 11032 | -5/Extension | Discovered exit to Factory (range 10) 11119 | -5/Extension | First assault squad dispatched 11121 | -5/Extension | Entered Cetus 11121 | -5/Cetus | Accompanied by 18 allies (A7) 11126 | -5/Cetus | Acquired a Cetus Manufacturing Module code from A7 11141 | -5/Cetus | Spotted Cetus Guard 11141 | -5/Cetus | Spotted Cetus Guard 11144 | -5/Cetus | Spotted Cetus Guard 11144 | -5/Cetus | Spotted Cetus Guard 11146 | -5/Cetus | Allies destroyed Cetus Guard 11158 | -5/Cetus | Allies destroyed Cetus Guard 11164 | -5/Cetus | Allies destroyed Cetus Guard 11205 | -5/Cetus | Allies destroyed Cetus Guard 11247 | -5/Cetus | Started Cetus Manufacturing Module 11263 | -5/Cetus | Escorted A7 to Cetus Mainframe 11272 | -5/Cetus | Manufactured an Enhanced Grunt 11282 | -5/Cetus | Discovered new exit (range 15) 11297 | -5/Cetus | Manufactured an Enhanced Grunt 11308 | -5/Cetus | Spotted Cetus Guard 11309 | -5/Cetus | Spotted Cetus Guard 11312 | -5/Cetus | Spotted Cetus Guard 11312 | -5/Cetus | Destroyed Cetus Guard 11322 | -5/Cetus | Manufactured an Enhanced Grunt 11323 | -5/Cetus | Spotted Cetus Guard 11328 | -5/Cetus | Allies destroyed Cetus Guard 11335 | -5/Cetus | Allies destroyed Cetus Guard 11337 | -5/Cetus | Destroyed Cetus Guard 11347 | -5/Cetus | Manufactured an Enhanced Grunt 11348 | -5/Cetus | Discovered exit to Factory (range 16) 11355 | -5/Cetus | Scared off Revision 17 11372 | -5/Cetus | Manufactured an Enhanced Grunt 11511 | -5/Cetus | Entered Archives 11511 | -5/Archives | Accompanied by 20 allies (A7) 11516 | -5/Archives | Received a hacking code to weaken MAIN.C 11579 | -5/Archives | Discovered new exit (range 16) 12291 | -5/Archives | Entered Hub_04(d) 12291 | -5/Hub_04(d) | Accompanied by 17 allies 12325 | -5/Hub_04(d) | Discovered exit to Factory (range 16) 12327 | -5/Hub_04(d) | Garrison activated, responded to threat 12591 | -5/Hub_04(d) | First assault squad dispatched 12603 | -5/Hub_04(d) | Retrieved Zion intel report: Active Terminals 12604 | -5/Hub_04(d) | Zion Fire squad teleported in 12613 | -5/Hub_04(d) | Lost 9 allies 12735 | -5/Hub_04(d) | Lost 8 allies 12769 | -5/Hub_04(d) | Retrieved Zion intel report: Depthwide Sectors/-5 12770 | -5/Hub_04(d) | Zion Heavy squad teleported in 12812 | -5/Hub_04(d) | Network Hub disabled 12814 | -5/Hub_04(d) | Spotted Lightning 12816 | -5/Hub_04(d) | Spotted Lightning 12817 | -5/Hub_04(d) | Spotted Lightning 12828 | -5/Hub_04(d) | Entered Factory 12828 | -4/Factory | Evolved 2 slots: Propulsion x1, Weapon x1 12880 | -4/Factory | Build established: Construct 12885 | -4/Factory | Spotted B-86 Titan 12899 | -4/Factory | Revealed the true nature of CR-A16's Pointy Stick 12903 | -4/Factory | Destroyed B-86 Titan 12948 | -4/Factory | Repaired Lrg. Storage Unit? 13078 | -4/Factory | First assault squad dispatched 13084 | -4/Factory | Fabricated Enh. Quantum Rifle (x2) 13310 | -4/Factory | Destroyed 9 combat bots 13342 | -4/Factory | Discovered new exit (range 15) 13485 | -4/Factory | Entered Research 13485 | -3/Research | Evolved 2 slots: Utility x2 13644 | -3/Research | Lost 3 parts (3u) 13950 | -3/Research | Retrieved Zion intel report: Unaware Analyses 14091 | -3/Research | System corruption reached 10% 14136 | -3/Research | Lost 8 parts (2p1n3u2w) 14393 | -3/Research | Retrieved Zion intel report: Depthwide Sectors/-2 14394 | -3/Research | Zion Heavy squad teleported in 14398 | -3/Research | Build established: Mutant 14735 | -3/Research | First assault squad dispatched 14821 | -3/Research | Core integrity fell below 50% 14911 | -3/Research | Terminal network hard line cut 15060 | -3/Research | Found Prototype Launcher 15169 | -3/Research | Core integrity fell below 20% 15188 | -3/Research | Lost 5 parts (1p4u) 15227 | -3/Research | Discovered new exit (range 3) 15231 | -3/Research | Entered Armory 15270 | -3/Armory | Found Gamma Bomb Array 15272 | -3/Armory | Found Gamma Bomb Array 15274 | -3/Armory | Found Gamma Bomb Array 15360 | -3/Armory | Found Gamma Bomb Array 15395 | -3/Armory | System corruption reached 30% 15436 | -3/Armory | Zion Hacker squad teleported in 15686 | -3/Armory | Lost 9 parts (1p2n2u4w) 15769 | -3/Armory | Destroyed by P-80 Master with Gamma Rifle Last Messages --------------- 15757_ The unstable cave ceiling collapses. 15757_ Slug penetrates Wall. 15758_ System corrupted: Lrn. Proton Cannon failed to cycle. 15759_ Hvy. Proton Missile Launcher destroyed. 15760_ System corrupted: Energy discharge (-164). 15761_ System corrupted: Gamma Rifle failed to cycle. 15761_ P-80 Master resets H-71 Marshal, system corruption cleaned. 15762_ Imp. Surge Thruster destroyed. 15765_ Penetrated by Slug. 15765_ Treaded Armored-Antigrav Exoskeleton destroyed. 15765_ Treaded Armored-Antigrav Exoskeleton core remains intact and functional. 15765_ Imp. Targeting Computer destroyed. 15768_ System corrupted: Enh. Nova Cannon failed to cycle. Map ----- +----------------------------------------------------+ | ?????????????????????????????????????????????????? | | ?????????????????????????????????????????????????? | | ?????????????????????????????????????????????????? | | ?????????????????????????????????????????????????? | | ?????????????????????????????????????????????????? | | ?????????????????????????????????????????????????? | | ?????????????????????????????????????????????????? | | ?????????????????????????????????????????????????? | | ?????????????????????????????????????????????????? | | ?????????????????????????????????????????????????? | | ?????????????????????????????????????????????????? | | ?????????????????????????????????????????????????? | | ????????????????????????????????#????????????????? | | ??????????????????????????????? #???????????##???? | | ??????????????????????????????? ############ #???? | | ????????????????????? ? ?????" # = ##??? | | ???????????????????# =!] """"" # #??? | | ???????????????????# =]] """"" # =[#???? | | ???????????????????# !]] # =[[ !%=#???? | | ???????????????????# """"" # !%[[ [ #???? | | ???????????????????# """" # =[[ #???? | | ???????????????????# """" # ! #???? | | ???????????????????# # """" " #???? | | ????????????????????######### ### """" " #???? | | ??????????????? #####;##### = ## """" """ #???? | | ?????????? H @% = ; """ % """ #???? | | ?????????? pp % %=## "#??? | | ?????????????# p #####;;% / ;#### "+########## | | ?????????????# ????????#### !#### %# ! | | ??????????????????????????# ## # | | ??????????????????????????# # """ """ | | ??????????????????????????# =# # """ """ | | ??????????????????????????# % / =! + "" """ | | ??????????????????????????#*=%! # =!! # | | ??????????????????????????# ]= !%!! # " """ | | ??????????????????????????# % *# " "" """ | | ??????????????????????????# # ]%# # """ """ | | ??????????????????????????## # ## # | | ??????????????????????????# ######## # "" | | ??????????????????????????## #????### # | | ???????????????????????????# #???## # # | | ???????????????????????????# #???#%[ # | | ???????????????????????????# #???# ! # | | ???????????????????????????# #???# ! [ # | | ???????????????????????????# #???#### #####"#### | | ???????????????????????????# #??????# #???# #??? | | ???????????????????????????# #??????# #???# #??? | | ???????????????????????????# ######## #???# #??? | | ???????????????????????????# ########?? | | ???????????????????????????# # #?? | +----------------------------------------------------+ Best States ------------- Heat Dissipation 122 Energy Generation 45 Energy Capacity 1000 Matter Stores 300 Matter Capacity 300 Sight Range 20 Terrain Scan Range 20 Terrain Scan Density 10 Jamming Range 16 Base Temperature (-) 200 Armor Coverage 225 Evasion (%) 66 Targeting Accuracy 8 Target Analysis 11 Recoil Reduction 5 Particle Charging 25 Offensive Hacking 10 Authchip Count 1 Item Schematics ----------------- Hyp. Gauss Rifle | -8/Storage | Hacked Lrn. Tractor Beam | -6/Zion | Archive EM Shield | -6/Zion | Archive Hyp. Mass Driver | -6/Zion | Archive Energy Well | -6/Zion | Archive Adv. Shield Generator | -6/Zion | Archive Arm. Leg | -6/Zion | Archive Hvy. Mass Driver | -6/Zion | Archive Imp. Remote Datajack | -6/Zion | Archive Hpw. Shock Rifle | -6/Zion | Archive KE Penetrator | -6/Zion | Archive Phase Cannon | -6/Zion | Archive Adv. Hardlight Generator | -6/Zion | Archive Adv. Plasma Cannon | -6/Zion | Archive Lgt. Fission Core | -6/Zion | Archive Adv. Melee Analysis Suite | -6/Zion | Archive Hvy. Phase Cannon | -6/Zion | Archive Com. Wheel | -5/Factory | Z-intel Focal Shield | -5/Factory | Z-intel Imp. Weapon Cycler | -5/Factory | Z-intel Imp. Plasma Cutter | -5/Factory | Z-intel Adv. Recoil Stabilizer | -5/Factory | Z-intel Imp. Titanium Leg | -5/Factory | Z-intel Adv. Terrain Scan Processor | -5/Factory | Z-intel Wheel | -5/Factory | Z-intel Scythe | -5/Factory | Z-intel Imp. Datajack | -5/Factory | Z-intel Force Field | -5/Factory | Z-intel Antigrav System | -5/Factory | Z-intel Variable Charge Gun | -5/Factory | Z-intel Hvy. Treads | -5/Factory | Z-intel Katana | -5/Factory | Z-intel Robot Schematics ------------------ R-06 Scavenger | -6/Zion | Archive R-10 Processor | -6/Zion | Archive O-24 Administrator | -6/Zion | Archive Fabricated ------------ Enh. Quantum Rifle | x2 | -4/Factory | Preloaded Repaired ---------- Lrg. Storage Unit | 38% | -4/Factory Studied --------- Lgt. Treads | -8/Materials | Hacked Wheel | -8/Materials | Hacked Com. Wheel | -8/Materials | Hacked Imp. Grenade Launcher | -6/Factory | Hacked Alien Tech Used ----------------- None Achievements -------------- Not So Scrappy Scrappetite Challenges ------------ None Game ------ Seed CryofiberIntegritySteel Manual? 0 Play Time 02:38:39 Cumulative 237.4 hours Start 2025.11.08 @ 09:01:00 End 2025.11.08 @ 13:40:05 Sessions 3 Manual Loads 0 Difficulty Rogue Special Mode None Game No. 188 Rogue 188 Adventurer 0 Explorer 0 Win Type - Total 6 Types 4/0/1/1/0/0/0/0/0/0 Lore% 82 Gallery% 72 Achievement% 50 Wizard Run 0 Options --------- Layout 1 ASCII 0 Keyboard 0 Movement Numpad Keybinds 0 Fullscreen 1 Font 24/Smallcaps Map View 50x35 Zoom Use 0% Tactical HUD 1 Map Filters NONE Filters NONE Steam 1 RUN: 1927df16-d8be-4d2e-8bd9-560d939306c5